[Event "Early-Titled-Tuesday-Blitz-March-05-2024"]
[Site "Chess.com"]
[Date "2024.03.05"]
[Round "5"]
[White "CarlosjPineror"]
[Black "JG-17"]
[Result "1-0"]
[WhiteElo "2722"]
[BlackElo "2502"]
[TimeControl "180+1"]
[EndTime "8:57:37 PST"]
[Termination "CarlosjPineror won by resignation"]

1. e4 {[%clk 0:03:00.9]} 1... c5 {[%clk 0:02:59.1]} 2. Nf3 {[%clk 0:03:00.2]}
2... d6 {[%clk 0:02:59.4]} 3. d4 {[%clk 0:03:00.4]} 3... cxd4 {[%clk 0:03:00.3]}
4. Nxd4 {[%clk 0:03:01]} 4... Nf6 {[%clk 0:03:00.9]} 5. Nc3 {[%clk 0:03:01.7]}
5... g6 {[%clk 0:03:01.6]} 6. Be3 {[%clk 0:03:00.9]} 6... Nc6 {[%clk 0:03:02.2]}
7. f3 {[%clk 0:03:01.2]} 7... h5 {[%clk 0:03:02.8]} 8. Qd2 {[%clk 0:02:59]} 8...
Nxd4 {[%clk 0:03:03.4]} 9. Bxd4 {[%clk 0:02:58.6]} 9... Bh6 {[%clk 0:03:04.1]}
10. Be3 {[%clk 0:02:57.6]} 10... Bxe3 {[%clk 0:03:04.7]} 11. Qxe3 {[%clk
0:02:58.2]} 11... Be6 {[%clk 0:03:05.6]} 12. Bb5+ {[%clk 0:02:51.5]} 12... Kf8
{[%clk 0:03:05.1]} 13. Rd1 {[%clk 0:02:44.5]} 13... a6 {[%clk 0:02:56.1]} 14.
Ba4 {[%clk 0:02:43.2]} 14... Qa5 {[%clk 0:02:53]} 15. Bb3 {[%clk 0:02:41.8]}
15... Bxb3 {[%clk 0:02:47.7]} 16. axb3 {[%clk 0:02:41.2]} 16... Rc8 {[%clk
0:02:47.2]} 17. O-O {[%clk 0:02:32.6]} 17... Qc5 {[%clk 0:02:46.8]} 18. Rd4
{[%clk 0:02:25.8]} 18... Kg7 {[%clk 0:02:37.8]} 19. Rfd1 {[%clk 0:02:24.7]}
19... b5 {[%clk 0:02:32.5]} 20. b4 {[%clk 0:02:23.4]} 20... Qb6 {[%clk
0:02:26.5]} 21. Kf2 {[%clk 0:02:23.2]} 21... Rc6 {[%clk 0:02:16.9]} 22. R1d2
{[%clk 0:02:07.7]} 22... Nd7 {[%clk 0:02:14.3]} 23. Nd5 {[%clk 0:02:00.7]} 23...
Qd8 {[%clk 0:02:14.8]} 24. f4 {[%clk 0:01:55.9]} 24... Nb6 {[%clk 0:02:13.7]}
25. Nxb6 {[%clk 0:01:54.6]} 25... Qxb6 {[%clk 0:02:14.6]} 26. c3 {[%clk
0:01:52.1]} 26... Rhc8 {[%clk 0:02:10.9]} 27. Rd5 {[%clk 0:01:45.3]} 27... Qxe3+
{[%clk 0:01:55.4]} 28. Kxe3 {[%clk 0:01:46.2]} 28... f6 {[%clk 0:01:34.9]} 29.
g3 {[%clk 0:01:44.7]} 29... Kf7 {[%clk 0:01:34.1]} 30. h3 {[%clk 0:01:44.5]}
30... Rd8 {[%clk 0:01:19.8]} 31. e5 {[%clk 0:01:36.8]} 31... fxe5 {[%clk
0:01:16.5]} 32. fxe5 {[%clk 0:01:36.7]} 32... Ke6 {[%clk 0:01:16.7]} 33. exd6
{[%clk 0:01:29.4]} 33... Rcxd6 {[%clk 0:01:14.3]} 34. Rxd6+ {[%clk 0:01:29.3]}
34... Rxd6 {[%clk 0:00:51.9]} 35. Rxd6+ {[%clk 0:01:29.2]} 35... Kxd6 {[%clk
0:00:52.1]} 36. Ke4 {[%clk 0:01:27.6]} 36... e5 {[%clk 0:00:50.6]} 37. b3 {[%clk
0:01:26.8]} 37... Ke6 {[%clk 0:00:43.9]} 38. h4 {[%clk 0:01:23.3]} 38... Kd6
{[%clk 0:00:37.5]} 39. c4 {[%clk 0:01:23.3]} 39... bxc4 {[%clk 0:00:25.7]} 40.
bxc4 {[%clk 0:01:24.2]} 40... Ke6 {[%clk 0:00:25.7]} 41. c5 {[%clk 0:01:23.8]}
41... Kf6 {[%clk 0:00:25.2]} 42. c6 {[%clk 0:01:24.1]} 42... Ke6 {[%clk
0:00:25]} 43. c7 {[%clk 0:01:24.3]} 43... Kd7 {[%clk 0:00:25.3]} 44. Kxe5 {[%clk
0:01:24.5]} 44... Kxc7 {[%clk 0:00:26]} 45. Kf6 {[%clk 0:01:25.2]} 45... Kb6
{[%clk 0:00:26.7]} 46. Kxg6 {[%clk 0:01:25.9]} 46... Kb5 {[%clk 0:00:27.4]} 47.
Kxh5 {[%clk 0:01:26.5]} 47... Kxb4 {[%clk 0:00:28.1]} 48. g4 {[%clk 0:01:27.4]}
48... a5 {[%clk 0:00:28.7]} 49. g5 {[%clk 0:01:28]} 49... a4 {[%clk 0:00:28.9]}
50. g6 {[%clk 0:01:28.7]} 50... a3 {[%clk 0:00:29.8]} 51. g7 {[%clk 0:01:29.4]}
51... a2 {[%clk 0:00:30.5]} 52. g8=Q {[%clk 0:01:30.1]} 52... a1=Q {[%clk
0:00:31]} 53. Qg4+ {[%clk 0:01:21.2]} 53... Kc5 {[%clk 0:00:27.8]} 54. Qf5+
{[%clk 0:01:20.6]} 54... Kd6 {[%clk 0:00:26.9]} 55. Kg6 {[%clk 0:01:17.9]} 55...
Ke7 {[%clk 0:00:25.4]} 56. Qf7+ {[%clk 0:01:17]} 56... Kd8 {[%clk 0:00:21.7]}
57. Qf6+ {[%clk 0:01:17.2]} 57... Qxf6+ {[%clk 0:00:21.1]} 58. Kxf6 {[%clk
0:01:18.1]} 58... Ke8 {[%clk 0:00:21.7]} 59. Kg7 {[%clk 0:01:18.8]} 1-0

[Event "Early-Titled-Tuesday-Blitz-March-05-2024"]
[Site "Chess.com"]
[Date "2024.03.05"]
[Round "5"]
[White "Chessbard1972"]
[Black "Roman_Ovetchkin"]
[Result "1-0"]
[WhiteElo "2464"]
[BlackElo "2583"]
[TimeControl "180+1"]
[EndTime "8:57:37 PST"]
[Termination "Chessbard1972 won by resignation"]

1. d4 {[%clk 0:03:00.9]} 1... Nf6 {[%clk 0:02:59.1]} 2. c4 {[%clk 0:03:01]} 2...
c5 {[%clk 0:02:58.2]} 3. d5 {[%clk 0:03:00.3]} 3... b5 {[%clk 0:02:58.3]} 4.
cxb5 {[%clk 0:03:00.6]} 4... a6 {[%clk 0:02:57.8]} 5. b6 {[%clk 0:03:01]} 5...
g6 {[%clk 0:02:56.3]} 6. Nc3 {[%clk 0:03:01]} 6... d6 {[%clk 0:02:55.4]} 7. Nf3
{[%clk 0:03:00.1]} 7... Bg7 {[%clk 0:02:54.9]} 8. Nd2 {[%clk 0:03:00.1]} 8...
Nbd7 {[%clk 0:02:54.7]} 9. e4 {[%clk 0:02:58.7]} 9... O-O {[%clk 0:02:53.3]} 10.
Be2 {[%clk 0:02:58.1]} 10... Nxb6 {[%clk 0:02:49.1]} 11. a4 {[%clk 0:02:56.7]}
11... a5 {[%clk 0:02:39]} 12. O-O {[%clk 0:02:54.6]} 12... Ne8 {[%clk 0:02:37]}
13. Bb5 {[%clk 0:02:51.2]} 13... Nc7 {[%clk 0:02:35.4]} 14. Bc6 {[%clk
0:02:51.2]} 14... Ba6 {[%clk 0:02:22.9]} 15. Nb5 {[%clk 0:02:47.6]} 15... Rb8
{[%clk 0:02:20.1]} 16. Re1 {[%clk 0:02:36.7]} 16... e6 {[%clk 0:01:49.1]} 17.
dxe6 {[%clk 0:02:23.2]} 17... fxe6 {[%clk 0:01:47.1]} 18. Nf3 {[%clk 0:02:18.6]}
18... d5 {[%clk 0:01:36.8]} 19. exd5 {[%clk 0:02:15.6]} 19... exd5 {[%clk
0:01:35.7]} 20. Bg5 {[%clk 0:02:09]} 20... Bf6 {[%clk 0:01:34.5]} 21. Bxf6
{[%clk 0:02:08.2]} 21... Rxf6 {[%clk 0:01:25.7]} 22. Nxc7 {[%clk 0:02:07.5]}
22... Qxc7 {[%clk 0:01:24.9]} 23. Bxd5+ {[%clk 0:02:07.7]} 23... Kg7 {[%clk
0:01:25]} 24. Ng5 {[%clk 0:02:02.4]} 24... Rd8 {[%clk 0:01:16.5]} 25. Ne6+
{[%clk 0:01:49.9]} 25... Rxe6 {[%clk 0:01:16]} 26. Rxe6 {[%clk 0:01:49.7]} 26...
Rxd5 {[%clk 0:01:15.3]} 27. Qe1 {[%clk 0:01:45.5]} 27... Qd8 {[%clk 0:01:10.5]}
28. Re7+ {[%clk 0:01:41.9]} 28... Kf8 {[%clk 0:01:08.9]} 29. Rxh7 {[%clk
0:01:38.7]} 29... Kg8 {[%clk 0:00:57]} 30. Re7 {[%clk 0:01:33.2]} 30... Kf8
{[%clk 0:00:53.4]} 31. Rh7 {[%clk 0:01:20]} 31... Kg8 {[%clk 0:00:40.8]} 32. Ra7
{[%clk 0:01:14.2]} 32... Bc8 {[%clk 0:00:40.4]} 33. h3 {[%clk 0:01:07]} 33...
Nc4 {[%clk 0:00:32.9]} 34. b3 {[%clk 0:01:00.9]} 34... Nd2 {[%clk 0:00:27.4]}
35. Qe3 {[%clk 0:00:48.3]} 35... Rd3 {[%clk 0:00:15.3]} 36. Qh6 {[%clk
0:00:45.9]} 36... Qf6 {[%clk 0:00:12.9]} 37. Re1 {[%clk 0:00:41.4]} 1-0

[Event "Early-Titled-Tuesday-Blitz-March-05-2024"]
[Site "Chess.com"]
[Date "2024.03.05"]
[Round "5"]
[White "Coach_Istvanovszki"]
[Black "vladgoncharov"]
[Result "1-0"]
[WhiteElo "2458"]
[BlackElo "2628"]
[TimeControl "180+1"]
[EndTime "8:57:41 PST"]
[Termination "Coach_Istvanovszki won by checkmate"]

1. d4 {[%clk 0:02:42.6]} 1... Nf6 {[%clk 0:02:59.2]} 2. Nc3 {[%clk 0:02:42.6]}
2... d5 {[%clk 0:02:58.8]} 3. Bf4 {[%clk 0:02:43]} 3... c6 {[%clk 0:02:58.6]} 4.
e3 {[%clk 0:02:42]} 4... Bf5 {[%clk 0:02:57.7]} 5. f3 {[%clk 0:02:41.9]} 5...
Bg6 {[%clk 0:02:55.8]} 6. g4 {[%clk 0:02:41.3]} 6... h5 {[%clk 0:02:52.7]} 7. g5
{[%clk 0:02:41.5]} 7... Nfd7 {[%clk 0:02:52.8]} 8. h4 {[%clk 0:02:42.2]} 8...
Qb6 {[%clk 0:02:48.8]} 9. Rb1 {[%clk 0:02:40.7]} 9... e6 {[%clk 0:02:47.2]} 10.
Nge2 {[%clk 0:02:40.1]} 10... c5 {[%clk 0:02:45.3]} 11. Bh3 {[%clk 0:02:35.2]}
11... Nc6 {[%clk 0:02:42.2]} 12. Kf2 {[%clk 0:02:19.4]} 12... Rc8 {[%clk
0:02:38.5]} 13. Kg2 {[%clk 0:02:17.8]} 13... Nb4 {[%clk 0:02:26.4]} 14. Rc1
{[%clk 0:02:11.6]} 14... cxd4 {[%clk 0:02:05.7]} 15. Nxd4 {[%clk 0:01:55.6]}
15... Be7 {[%clk 0:01:58]} 16. a3 {[%clk 0:01:53.6]} 16... Nc6 {[%clk
0:01:56.5]} 17. Bxe6 {[%clk 0:01:49.7]} 17... fxe6 {[%clk 0:01:20.8]} 18. Nxe6
{[%clk 0:01:50.6]} 18... d4 {[%clk 0:01:15.8]} 19. Nd5 {[%clk 0:01:44.3]} 19...
Qxb2 {[%clk 0:01:15.1]} 20. exd4 {[%clk 0:01:28.1]} 20... Kf7 {[%clk 0:01:10.3]}
21. Re1 {[%clk 0:01:23.7]} 21... Bxa3 {[%clk 0:01:06.5]} 22. Rb1 {[%clk
0:01:05.6]} 22... Qa2 {[%clk 0:00:48.9]} 23. Rxb7 {[%clk 0:01:03.7]} 23... Qxd5
{[%clk 0:00:47.6]} 24. c4 {[%clk 0:00:57.1]} 24... Qxc4 {[%clk 0:00:21.7]} 25.
Rxd7+ {[%clk 0:00:57.6]} 25... Ke8 {[%clk 0:00:21.3]} 26. Nc5+ {[%clk
0:00:42.8]} 26... Kf8 {[%clk 0:00:20.1]} 27. Bd6+ {[%clk 0:00:40.6]} 27... Kg8
{[%clk 0:00:18.3]} 28. Qa1 {[%clk 0:00:28.9]} 28... Bxc5 {[%clk 0:00:16.5]} 29.
dxc5 {[%clk 0:00:29.6]} 29... Bf7 {[%clk 0:00:16.1]} 30. g6 {[%clk 0:00:26.4]}
30... Nd8 {[%clk 0:00:10.8]} 31. Re8+ {[%clk 0:00:21.1]} 31... Bxe8 {[%clk
0:00:10.3]} 32. Qxg7# {[%clk 0:00:21.7]} 1-0

[Event "Early-Titled-Tuesday-Blitz-March-05-2024"]
[Site "Chess.com"]
[Date "2024.03.05"]
[Round "5"]
[White "iamanoush"]
[Black "publicaccountcze"]
[Result "1-0"]
[WhiteElo "2533"]
[BlackElo "2211"]
[TimeControl "180+1"]
[EndTime "8:57:44 PST"]
[Termination "iamanoush won on time"]

1. d4 {[%clk 0:02:35.3]} 1... Nf6 {[%clk 0:02:56.1]} 2. c4 {[%clk 0:02:35.2]}
2... g6 {[%clk 0:02:55.4]} 3. Nc3 {[%clk 0:02:35.2]} 3... d5 {[%clk 0:02:56.1]}
4. cxd5 {[%clk 0:02:36.1]} 4... Nxd5 {[%clk 0:02:56.5]} 5. Bd2 {[%clk
0:02:36.7]} 5... Bg7 {[%clk 0:02:44.5]} 6. e4 {[%clk 0:02:34.9]} 6... Nxc3
{[%clk 0:02:39.4]} 7. Bxc3 {[%clk 0:02:35.8]} 7... c5 {[%clk 0:02:33.1]} 8. d5
{[%clk 0:02:35.2]} 8... O-O {[%clk 0:02:18]} 9. h4 {[%clk 0:02:32.3]} 9... e6
{[%clk 0:02:17.1]} 10. Bc4 {[%clk 0:02:22.6]} 10... exd5 {[%clk 0:02:14]} 11.
Bxd5 {[%clk 0:02:23.5]} 11... Bxc3+ {[%clk 0:02:10.1]} 12. bxc3 {[%clk 0:02:21]}
12... Nd7 {[%clk 0:01:48.6]} 13. h5 {[%clk 0:02:17.3]} 13... Nf6 {[%clk
0:01:48.2]} 14. hxg6 {[%clk 0:02:17.2]} 14... hxg6 {[%clk 0:01:43.6]} 15. Qd2
{[%clk 0:02:15.5]} 15... Bg4 {[%clk 0:00:57.5]} 16. f3 {[%clk 0:02:06.4]} 16...
Nxd5 {[%clk 0:00:53]} 17. exd5 {[%clk 0:01:59]} 17... Re8+ {[%clk 0:00:50.8]}
18. Kf1 {[%clk 0:01:58.8]} 18... Bh5 {[%clk 0:00:31.6]} 19. g4 {[%clk
0:01:54.4]} 19... Bxg4 {[%clk 0:00:30.5]} 20. fxg4 {[%clk 0:01:55.3]} 20... Qf6+
{[%clk 0:00:29.9]} 21. Kg2 {[%clk 0:01:50.9]} 21... Re4 {[%clk 0:00:29.7]} 22.
Ne2 {[%clk 0:01:35.4]} 22... Rae8 {[%clk 0:00:25.3]} 23. Ng3 {[%clk 0:01:34.5]}
23... Rxg4 {[%clk 0:00:24]} 24. Raf1 {[%clk 0:01:21.9]} 24... Qe5 {[%clk
0:00:14.9]} 25. Rh3 {[%clk 0:01:18.2]} 25... Qe2+ {[%clk 0:00:10.4]} 26. Qxe2
{[%clk 0:01:17.7]} 26... Rxe2+ {[%clk 0:00:11.3]} 27. Rf2 {[%clk 0:01:18.3]}
27... Rxf2+ {[%clk 0:00:07.8]} 28. Kxf2 {[%clk 0:01:19.2]} 28... Ra4 {[%clk
0:00:08.2]} 29. Ke3 {[%clk 0:01:16.9]} 29... Rxa2 {[%clk 0:00:08.4]} 30. Ne4
{[%clk 0:01:17]} 30... b6 {[%clk 0:00:08.4]} 31. Nf6+ {[%clk 0:01:14.9]} 31...
Kf8 {[%clk 0:00:08]} 32. d6 {[%clk 0:01:14.8]} 32... Ra1 {[%clk 0:00:04]} 33.
Rh8+ {[%clk 0:01:14.6]} 33... Kg7 {[%clk 0:00:04.4]} 34. d7 {[%clk 0:01:15]}
34... Kxh8 {[%clk 0:00:04]} 35. d8=Q+ {[%clk 0:01:15.1]} 35... Kg7 {[%clk
0:00:04.5]} 36. Ne4 {[%clk 0:01:14.8]} 36... Re1+ {[%clk 0:00:04.4]} 37. Kf3
{[%clk 0:01:13.7]} 37... Rc1 {[%clk 0:00:04.5]} 38. Qf6+ {[%clk 0:01:13.2]}
38... Kg8 {[%clk 0:00:04.5]} 39. Ke2 {[%clk 0:01:05.5]} 39... Rc2+ {[%clk
0:00:04.3]} 40. Kd1 {[%clk 0:01:04.5]} 40... Rh2 {[%clk 0:00:04.5]} 41. Ng5
{[%clk 0:01:03.4]} 41... Rh1+ {[%clk 0:00:02.7]} 42. Ke2 {[%clk 0:01:03.6]}
42... Rh2+ {[%clk 0:00:03.3]} 43. Kf3 {[%clk 0:01:03.9]} 43... Rh3+ {[%clk
0:00:03.4]} 44. Kg4 {[%clk 0:01:03.1]} 44... Rf3 {[%clk 0:00:01.7]} 45. Qxf3
{[%clk 0:01:02.9]} 1-0

[Event "Early-Titled-Tuesday-Blitz-March-05-2024"]
[Site "Chess.com"]
[Date "2024.03.05"]
[Round "5"]
[White "Shivananda1964"]
[Black "Bilan_Danila"]
[Result "0-1"]
[WhiteElo "2342"]
[BlackElo "2542"]
[TimeControl "180+1"]
[EndTime "8:57:45 PST"]
[Termination "Bilan_Danila won on time"]

1. e4 {[%clk 0:02:56.3]} 1... c6 {[%clk 0:03:00]} 2. d4 {[%clk 0:02:55]} 2... d5
{[%clk 0:02:55.9]} 3. f3 {[%clk 0:02:54.5]} 3... e6 {[%clk 0:02:39.1]} 4. Nc3
{[%clk 0:02:53.4]} 4... Bb4 {[%clk 0:02:38.6]} 5. a3 {[%clk 0:02:44.2]} 5...
Bxc3+ {[%clk 0:02:20.8]} 6. bxc3 {[%clk 0:02:42.5]} 6... dxe4 {[%clk 0:02:21.7]}
7. Bc4 {[%clk 0:02:08.9]} 7... Nf6 {[%clk 0:01:36.7]} 8. Bg5 {[%clk 0:02:01.4]}
8... Qa5 {[%clk 0:01:27.7]} 9. Qd2 {[%clk 0:01:58.8]} 9... exf3 {[%clk 0:01:13]}
10. gxf3 {[%clk 0:01:42.9]} 10... Nd5 {[%clk 0:01:04]} 11. Ne2 {[%clk
0:01:42.1]} 11... Nd7 {[%clk 0:00:57.7]} 12. O-O {[%clk 0:01:22.7]} 12... O-O
{[%clk 0:00:42.8]} 13. Kh1 {[%clk 0:01:20.5]} 13... e5 {[%clk 0:00:30.9]} 14.
Rg1 {[%clk 0:01:09.4]} 14... Kh8 {[%clk 0:00:22.1]} 15. Bh6 {[%clk 0:00:42.4]}
15... Rg8 {[%clk 0:00:20]} 16. Qg5 {[%clk 0:00:23.5]} 16... g6 {[%clk
0:00:15.8]} 17. Bxd5 {[%clk 0:00:13]} 17... Qxd5 {[%clk 0:00:11.6]} 18. Rg3
{[%clk 0:00:10.8]} 18... exd4 {[%clk 0:00:10.8]} 19. Qxd5 {[%clk 0:00:06.8]}
19... cxd5 {[%clk 0:00:11.7]} 20. cxd4 {[%clk 0:00:03.4]} 20... Re8 {[%clk
0:00:09.5]} 21. Nf4 {[%clk 0:00:02.5]} 21... Nb6 {[%clk 0:00:09.1]} 22. h3
{[%clk 0:00:01.9]} 22... Bf5 {[%clk 0:00:09.6]} 23. Rb1 {[%clk 0:00:01.3]} 23...
Rac8 {[%clk 0:00:09.9]} 0-1

[Event "Early-Titled-Tuesday-Blitz-March-05-2024"]
[Site "Chess.com"]
[Date "2024.03.05"]
[Round "5"]
[White "AA95"]
[Black "thebeast2900"]
[Result "1-0"]
[WhiteElo "2503"]
[BlackElo "2311"]
[TimeControl "180+1"]
[EndTime "8:57:47 PST"]
[Termination "AA95 won on time"]

1. d4 {[%clk 0:03:00.9]} 1... d5 {[%clk 0:02:58.2]} 2. Nf3 {[%clk 0:03:01.1]}
2... Nf6 {[%clk 0:02:57.2]} 3. c4 {[%clk 0:03:01.4]} 3... e6 {[%clk 0:02:56.9]}
4. Nc3 {[%clk 0:03:01.7]} 4... c6 {[%clk 0:02:54.8]} 5. e3 {[%clk 0:03:00.7]}
5... Bb4 {[%clk 0:02:45.2]} 6. Bd3 {[%clk 0:02:44.4]} 6... O-O {[%clk
0:02:37.7]} 7. O-O {[%clk 0:02:44]} 7... b6 {[%clk 0:02:32]} 8. Qc2 {[%clk
0:02:42.5]} 8... Ba6 {[%clk 0:02:22.3]} 9. cxd5 {[%clk 0:02:35.8]} 9... Bxd3
{[%clk 0:02:20.4]} 10. Qxd3 {[%clk 0:02:36.7]} 10... cxd5 {[%clk 0:02:20.3]} 11.
Bd2 {[%clk 0:02:34.7]} 11... Nc6 {[%clk 0:02:07.9]} 12. Rfc1 {[%clk 0:02:32.3]}
12... Rc8 {[%clk 0:02:05]} 13. Nb5 {[%clk 0:02:16.4]} 13... Bxd2 {[%clk
0:02:00.8]} 14. Nxd2 {[%clk 0:02:14.2]} 14... Qd7 {[%clk 0:01:55.3]} 15. Qa3
{[%clk 0:01:52.2]} 15... Na5 {[%clk 0:01:19.1]} 16. Qb4 {[%clk 0:01:14.2]} 16...
a6 {[%clk 0:00:51.9]} 17. Nc3 {[%clk 0:00:54]} 17... Rc6 {[%clk 0:00:23.7]} 18.
Na4 {[%clk 0:00:49.7]} 18... Rb8 {[%clk 0:00:10]} 19. Nc5 {[%clk 0:00:25.1]}
19... Qa7 {[%clk 0:00:06.5]} 20. Nd3 {[%clk 0:00:20.5]} 20... Nc4 {[%clk
0:00:02.9]} 21. Nxc4 {[%clk 0:00:19.2]} 21... dxc4 {[%clk 0:00:03.6]} 22. Rxc4
{[%clk 0:00:19.5]} 22... Rxc4 {[%clk 0:00:03.5]} 23. Qxc4 {[%clk 0:00:20.4]}
23... b5 {[%clk 0:00:03.8]} 24. Qc5 {[%clk 0:00:20.8]} 24... Qb7 {[%clk
0:00:03.2]} 25. Rc1 {[%clk 0:00:18]} 25... g6 {[%clk 0:00:03.2]} 26. Qe5 {[%clk
0:00:16.1]} 26... Nd5 {[%clk 0:00:02]} 27. Nc5 {[%clk 0:00:15.2]} 1-0

[Event "Early-Titled-Tuesday-Blitz-March-05-2024"]
[Site "Chess.com"]
[Date "2024.03.05"]
[Round "5"]
[White "TheCavemanChess"]
[Black "Matalon"]
[Result "1-0"]
[WhiteElo "2716"]
[BlackElo "2486"]
[TimeControl "180+1"]
[EndTime "8:57:48 PST"]
[Termination "TheCavemanChess won by resignation"]

1. Nf3 {[%clk 0:03:00.9]} 1... Nf6 {[%clk 0:02:59.1]} 2. g3 {[%clk 0:03:01.2]}
2... g6 {[%clk 0:02:58.5]} 3. Bg2 {[%clk 0:03:01.8]} 3... Bg7 {[%clk 0:02:59.2]}
4. O-O {[%clk 0:03:02.7]} 4... d6 {[%clk 0:02:59.2]} 5. d4 {[%clk 0:03:03.6]}
5... O-O {[%clk 0:02:59.4]} 6. c4 {[%clk 0:03:04.1]} 6... Nc6 {[%clk 0:02:59.6]}
7. Nc3 {[%clk 0:03:05]} 7... Bg4 {[%clk 0:02:59.3]} 8. h3 {[%clk 0:03:04.9]}
8... Bxf3 {[%clk 0:02:59.4]} 9. Bxf3 {[%clk 0:03:05.8]} 9... Nd7 {[%clk
0:02:59.8]} 10. e3 {[%clk 0:03:04.2]} 10... e5 {[%clk 0:02:59.3]} 11. dxe5
{[%clk 0:03:00.5]} 11... Ndxe5 {[%clk 0:02:53.4]} 12. Bd5 {[%clk 0:03:00.8]}
12... Ne7 {[%clk 0:02:37.9]} 13. Bxb7 {[%clk 0:02:58.6]} 13... Rb8 {[%clk
0:02:37]} 14. Bg2 {[%clk 0:02:59.2]} 14... Nxc4 {[%clk 0:02:36.6]} 15. Qe2
{[%clk 0:02:59.8]} 15... Na5 {[%clk 0:02:09.9]} 16. Rd1 {[%clk 0:02:50.8]} 16...
c6 {[%clk 0:02:03.7]} 17. e4 {[%clk 0:02:42.2]} 17... Qc7 {[%clk 0:01:39]} 18.
Bf4 {[%clk 0:02:16.6]} 18... Rfd8 {[%clk 0:01:37.7]} 19. Rac1 {[%clk 0:02:15.8]}
19... Be5 {[%clk 0:01:24.2]} 20. Bg5 {[%clk 0:02:11.3]} 20... c5 {[%clk
0:01:03.5]} 21. b3 {[%clk 0:02:02.4]} 21... Nac6 {[%clk 0:01:02.4]} 22. Nd5
{[%clk 0:01:38.1]} 22... Qb7 {[%clk 0:00:48.2]} 23. Nxe7+ {[%clk 0:01:31.9]}
23... Nxe7 {[%clk 0:00:47.4]} 24. f4 {[%clk 0:01:32.8]} 24... Bd4+ {[%clk
0:00:40.8]} 25. Kh2 {[%clk 0:01:28.9]} 25... Qd7 {[%clk 0:00:37.2]} 26. Rxd4
{[%clk 0:00:59]} 26... cxd4 {[%clk 0:00:36.7]} 27. Bf6 {[%clk 0:00:59.1]} 27...
Qe6 {[%clk 0:00:31.7]} 28. Bxd4 {[%clk 0:00:58.7]} 28... Rdc8 {[%clk 0:00:29]}
29. Rd1 {[%clk 0:00:57.6]} 29... Nc6 {[%clk 0:00:28.2]} 30. Ba1 {[%clk
0:00:57.6]} 30... Re8 {[%clk 0:00:26.6]} 31. Qb2 {[%clk 0:00:56.6]} 31... f6
{[%clk 0:00:25.1]} 32. e5 {[%clk 0:00:57.1]} 32... Qf5 {[%clk 0:00:13.2]} 33.
Bxc6 {[%clk 0:00:52.8]} 33... fxe5 {[%clk 0:00:13.2]} 34. Bxe8 {[%clk
0:00:49.7]} 34... Rxe8 {[%clk 0:00:12.1]} 35. Rxd6 {[%clk 0:00:49]} 35... Qe4
{[%clk 0:00:10.6]} 36. Rd2 {[%clk 0:00:46.9]} 36... h5 {[%clk 0:00:08.6]} 37.
Re2 {[%clk 0:00:47.3]} 37... Qf3 {[%clk 0:00:07.5]} 38. Rxe5 {[%clk 0:00:38.4]}
38... Rxe5 {[%clk 0:00:07.5]} 39. fxe5 {[%clk 0:00:39.3]} 39... h4 {[%clk
0:00:08]} 40. Qg2 {[%clk 0:00:39.9]} 40... hxg3+ {[%clk 0:00:07.2]} 41. Qxg3
{[%clk 0:00:40.8]} 41... Qe2+ {[%clk 0:00:07.5]} 42. Qg2 {[%clk 0:00:41.4]}
42... Qe1 {[%clk 0:00:06.5]} 43. Qxg6+ {[%clk 0:00:41.3]} 1-0

[Event "Early-Titled-Tuesday-Blitz-March-05-2024"]
[Site "Chess.com"]
[Date "2024.03.05"]
[Round "5"]
[White "Road2GM3000"]
[Black "HATilay"]
[Result "0-1"]
[WhiteElo "2503"]
[BlackElo "2680"]
[TimeControl "180+1"]
[EndTime "8:57:48 PST"]
[Termination "HATilay won by checkmate"]

1. d4 {[%clk 0:02:55.9]} 1... Nf6 {[%clk 0:02:59.9]} 2. c4 {[%clk 0:02:56.4]}
2... e6 {[%clk 0:03:00.3]} 3. Nc3 {[%clk 0:02:57.1]} 3... Bb4 {[%clk 0:03:00.1]}
4. Nf3 {[%clk 0:02:57.9]} 4... O-O {[%clk 0:03:00.1]} 5. Bg5 {[%clk 0:02:58.6]}
5... c5 {[%clk 0:02:57.4]} 6. e3 {[%clk 0:02:58.5]} 6... b6 {[%clk 0:02:54.7]}
7. Bd3 {[%clk 0:02:58.7]} 7... Bb7 {[%clk 0:02:55.3]} 8. Qc2 {[%clk 0:02:58.8]}
8... h6 {[%clk 0:02:55.8]} 9. Bh4 {[%clk 0:02:58.8]} 9... d5 {[%clk 0:02:48.8]}
10. cxd5 {[%clk 0:02:58.4]} 10... exd5 {[%clk 0:02:46.1]} 11. O-O {[%clk
0:02:58.7]} 11... Nbd7 {[%clk 0:02:45.9]} 12. Ne5 {[%clk 0:02:57.3]} 12... Bxc3
{[%clk 0:01:44.7]} 13. Nxd7 {[%clk 0:02:49.4]} 13... Qxd7 {[%clk 0:01:44.1]} 14.
Bxf6 {[%clk 0:02:47.2]} 14... Ba5 {[%clk 0:01:44]} 15. Be5 {[%clk 0:02:36.6]}
15... c4 {[%clk 0:01:38.7]} 16. Bf5 {[%clk 0:02:34.9]} 16... Qe7 {[%clk
0:01:39.3]} 17. a4 {[%clk 0:02:06.9]} 17... Bc8 {[%clk 0:01:33.2]} 18. Bh7+
{[%clk 0:01:55.9]} 18... Kh8 {[%clk 0:01:33.1]} 19. Qb1 {[%clk 0:01:51.1]} 19...
Be6 {[%clk 0:01:11.6]} 20. Bc2 {[%clk 0:01:44.1]} 20... f6 {[%clk 0:01:07.4]}
21. Bg3 {[%clk 0:01:43.4]} 21... Bg8 {[%clk 0:01:03.6]} 22. Rd1 {[%clk
0:01:34.4]} 22... a6 {[%clk 0:00:56.4]} 23. e4 {[%clk 0:01:32.4]} 23... dxe4
{[%clk 0:00:52.5]} 24. Bxe4 {[%clk 0:01:32.1]} 24... Rad8 {[%clk 0:00:36.3]} 25.
d5 {[%clk 0:01:32.2]} 25... f5 {[%clk 0:00:35]} 26. Bf3 {[%clk 0:01:23.2]} 26...
f4 {[%clk 0:00:34.1]} 27. d6 {[%clk 0:00:59.7]} 27... Qf6 {[%clk 0:00:34.3]} 28.
Ra3 {[%clk 0:00:20.6]} 28... fxg3 {[%clk 0:00:31.7]} 29. hxg3 {[%clk 0:00:21.5]}
29... Rxd6 {[%clk 0:00:27.9]} 30. Rc1 {[%clk 0:00:21.4]} 30... Bd5 {[%clk
0:00:24.1]} 31. Bxd5 {[%clk 0:00:19.7]} 31... Qxf2+ {[%clk 0:00:23.6]} 32. Kh2
{[%clk 0:00:19.6]} 32... Rxd5 {[%clk 0:00:24.1]} 33. Rxc4 {[%clk 0:00:15.6]}
33... Rh5+ {[%clk 0:00:22]} 34. Rh4 {[%clk 0:00:16.3]} 34... Rxh4+ {[%clk
0:00:22.4]} 35. gxh4 {[%clk 0:00:17.2]} 35... Bb4 {[%clk 0:00:21.5]} 36. Rh3
{[%clk 0:00:15.9]} 36... Bd6+ {[%clk 0:00:21.4]} 37. Kh1 {[%clk 0:00:15.5]}
37... Qf1+ {[%clk 0:00:21.6]} 38. Qxf1 {[%clk 0:00:16.2]} 38... Rxf1# {[%clk
0:00:21.9]} 0-1